bitfinex-derivatives/quotes_ETHF0:USTF0_20210407
["timestamp","ask_amount","ask_price","bid_price","bid_amount"]
[1617782358728,0.05600829,2078.3,2077.9,2.90695]
[1617782359124,0.05600829,2078.3,2078.0,5.92]
[1617782359928,0.05591083,2078.8,2078.0,5.92]
[1617782360125,30.05591083,2078.8,2078.0,5.92]
[1617782360325,32.05591083,2078.8,2078.0,5.92]
[1617782360525,32.05591083,2078.8,2077.9,2.90695]
[1617782360726,2.90695,2078.0,2077.9,2.90695]
[1617782360935,5.97985,2078.0,2076.7,27.2012]
[1617782361127,67.2683,2077.3,2076.7,105.4636]
[1617782361330,67.2683,2077.3,2076.7,92.1017]
[1617782361732,2.0449,2077.5,2076.8,6.02]
[1617782362329,2.0449,2077.5,2075.0,27.0671]
[1617782362330,2.0449,2077.5,2076.4,5.84]
[1617782362529,2.0,2077.4,2076.4,5.84]
[1617782362730,2.90695,2076.5,2076.2,2.90695]
[1617782362931,5.59225,2076.5,2076.2,2.90695]
[1617782363130,5.59225,2076.5,2076.3,6.04]
[1617782369038,5.59225,2076.5,2076.2,2.90695]
[1617782369243,5.59225,2076.5,2075.6,60.2622]
[1617782369439,2.0,2076.1,2075.6,60.2622]
[1617782370139,2.0,2076.1,2075.7,5.96]
[1617782370339,2.0,2076.1,2075.6,60.2622]
[1617782370539,32.0,2076.1,2075.6,60.2622]
[1617782370740,2.90695,2075.7,2075.6,60.2622]
[1617782370940,5.69295,2075.7,2075.6,60.2622]
[1617782372142,5.69295,2075.7,2075.6,66.1922]
[1617782373646,2.90695,2075.7,2075.6,66.1922]
[1617782374447,2.90695,2075.7,2075.6,5.93]
[1617782374647,2.90695,2075.7,2075.6,86.0508]
[1617782374847,2.90695,2075.7,2075.6,83.02775]
[1617782375047,64.3594,2076.0,2075.6,89.01775]
[1617782375246,64.3594,2076.0,2075.6,91.79725]
[1617782375649,91.9421,2077.9,2075.6,41.67645]
[1617782376049,91.9421,2077.9,2075.7,2.0]
[1617782376249,91.9421,2077.9,2075.9,2.0]
[1617782376447,91.9421,2077.9,2075.9,7.82]
[1617782376648,121.9421,2077.9,2075.9,7.82]
[1617782376849,2.90695,2076.9,2076.8,2.90695]
[1617782377048,2.90695,2076.9,2076.8,5.66285]
[1617782377250,2.90695,2076.9,2076.8,8.83285]
[1617782378849,2.90695,2076.9,2076.0,2.90695]
[1617782379150,77.2476,2076.8,2075.4,13.6141]
[1617782379351,30.9562,2076.8,2074.4,27.4317]
[1617782379549,32.9562,2076.8,2074.4,27.4317]
[1617782379751,32.0,2076.8,2074.8,5.91]
[1617782379952,2.0,2076.8,2074.8,5.91]
[1617782380149,32.0,2076.8,2074.6,3.01]
[1617782380349,32.0,2076.8,2074.9,6.0]
[1617782380749,32.0,2076.8,2074.6,5.8]
[1617782380950,32.0,2076.8,2075.4,2.90695]
[1617782381352,32.0,2076.8,2075.5,5.97]
[1617782381750,2.0,2076.8,2075.5,5.97]
[1617782382150,2.0,2076.6,2075.5,5.97]
[1617782382752,55.2396,2075.8,2075.5,5.97]
[1617782382951,2.90695,2075.6,2075.5,5.97]
[1617782388459,2.90695,2075.6,2075.2,5.97]
[1617782388658,2.90695,2075.6,2075.5,5.92]
[1617782389058,2.90695,2075.6,2075.2,5.88]
[1617782389260,2.90695,2075.6,2075.5,5.81]
[1617782389660,2.90695,2075.6,2075.2,5.82]
[1617782390060,2.90695,2075.6,2075.5,6.03]
[1617782390261,2.90695,2075.6,2075.2,6.05]
[1617782390659,2.309,2075.8,2075.2,6.05]
[1617782390861,2.90695,2075.9,2075.7,2.90695]
[1617782391461,2.90695,2075.9,2075.8,5.81]
[1617782396466,2.90695,2075.9,2075.1,5.8]
[1617782396671,5.62965,2075.9,2075.8,5.9]
[1617782397065,5.62965,2075.9,2075.5,2.90695]
[1617782397472,5.62965,2075.9,2075.8,5.85]
[1617782397668,5.62965,2075.9,2075.6,0.23]
[1617782397865,5.62965,2075.9,2075.5,2.90695]
[1617782398066,5.62965,2075.9,2075.8,5.77]
[1617782398266,5.62965,2075.9,2075.6,5.88]
[1617782398467,5.62965,2075.9,2074.5,2.0]
[1617782398667,5.62965,2075.9,2074.4,27.4317]
[1617782398967,2.7227,2075.9,2075.1,2.90695]
[1617782399566,2.7227,2075.9,2075.2,5.89]
[1617782400767,2.0,2075.8,2074.5,5.78]
[1617782400967,2.90695,2074.6,2074.5,2.90695]
[1617782401167,5.28145,2074.6,2074.5,2.90695]
[1617782403770,5.28145,2074.6,2073.3,30.0]
[1617782403970,5.28145,2074.6,2073.2,13.7497]
[1617782404973,2.3745,2074.6,2073.8,2.90695]
[1617782406072,2.3745,2074.6,2073.2,13.7497]
[1617782406271,2.1269,2074.6,2073.2,13.7497]
[1617782406971,2.1269,2074.6,2073.7,2.90695]
[1617782407171,4.1269,2074.6,2073.7,2.90695]
[1617782407976,34.1269,2074.6,2073.7,2.90695]
[1617782408373,4.1269,2074.6,2073.7,2.90695]
[1617782408574,4.1269,2074.6,2072.7,13.5793]
[1617782408575,34.1269,2074.6,2072.7,13.5793]
[1617782408975,34.1269,2074.6,2073.5,2.90695]
[1617782409176,4.1269,2074.6,2073.5,2.90695]
[1617782410679,4.1269,2074.6,2073.5,2.27675]
[1617782410879,34.1269,2074.6,2072.7,13.5793]
[1617782411081,2.90695,2073.3,2072.7,2.90695]
[1617782411280,5.73185,2073.3,2072.7,2.90695]
[1617782412280,6.69255,2073.3,2072.7,2.90695]
[1617782415084,2.90695,2072.8,2072.7,2.90695]
[1617782415285,5.51115,2072.8,2072.7,2.90695]
[1617782416286,6.47235,2072.8,2072.0,30.0]
[1617782417087,3.5654,2072.8,2072.2,2.90695]
[1617782417286,2.0,2072.7,2072.2,2.90695]
[1617782417488,3.5654,2072.8,2072.2,2.90695]
[1617782418286,3.5654,2072.8,2072.0,30.0]
[1617782419087,2.90695,2072.1,2072.0,30.0]
[1617782419287,5.53465,2072.1,2072.0,30.0]
[1617782423097,5.53465,2072.1,2071.9,2.90695]
[1617782430205,5.53465,2072.1,2071.2,32.0]
[1617782430807,5.53465,2072.1,2071.2,32.9563]
[1617782431006,5.53465,2072.1,2071.2,30.0]
[1617782431207,2.6277,2072.1,2071.4,2.90695]
[1617782431407,0.9555,2072.4,2071.4,2.90695]
[1617782431606,3.5654,2072.8,2071.4,2.90695]
[1617782432006,5.5654,2072.8,2071.4,2.90695]
[1617782433306,2.90695,2071.5,2071.4,2.90695]
[1617782433507,5.88785,2071.5,2071.4,2.90695]
[1617782447927,5.88785,2071.5,2070.9,30.0]
[1617782449532,2.9809,2071.5,2071.0,2.90695]
[1617782449732,1.9238,2071.8,2071.0,2.90695]
[1617782451433,2.90695,2071.1,2071.0,2.90695]
[1617782454046,2.90695,2071.1,2070.8,30.0]
[1617782454242,2.90695,2071.1,2070.2,13.4869]
[1617782454442,2.90695,2071.1,2070.3,30.0]
[1617782454641,2.90695,2071.1,2070.1,1.0]
[1617782455441,0.9535,2071.2,2070.3,2.90695]
[1617782456041,0.9535,2071.2,2070.3,32.90695]
[1617782456242,0.9535,2071.2,2070.3,2.90695]
[1617782456642,0.9535,2071.2,2070.3,32.90695]
[1617782457546,2.90695,2070.9,2070.7,2.90695]
[1617782458744,4.00695,2070.9,2070.7,2.90695]
[1617782459545,4.00695,2070.9,2070.1,3.0]
[1617782459746,4.00695,2070.9,2070.1,1.0]
[1617782461445,1.1,2070.9,2070.3,2.90695]
[1617782463252,1.1,2070.9,2070.1,1.0]
[1617782463451,2.90695,2070.2,2069.7,2.90695]
[1617782463651,6.01915,2070.2,2069.7,2.90695]
[1617782464050,6.01915,2070.2,2069.1,30.0]
[1617782464252,6.01915,2070.2,2068.5,30.0]
[1617782464653,6.98995,2070.2,2068.5,32.0]
[1617782465052,6.98995,2070.2,2068.5,30.0]
[1617782465453,72.4159,2069.0,2068.8,2.90695]
[1617782465653,76.4611,2069.0,2068.8,2.90695]
[1617782467259,4.0452,2069.0,2068.8,2.90695]
[1617782467459,74.7457,2068.8,2068.2,15.0129]
[1617782467661,75.8457,2068.8,2068.4,2.90695]
[1617782469559,2.90695,2068.5,2068.4,2.90695]
[1617782469760,6.07435,2068.5,2068.4,2.90695]
[1617782470560,6.07435,2068.5,2068.4,2.12985]
[1617782470759,7.02665,2068.5,2068.4,2.12985]
[1617782471359,7.02665,2068.5,2068.4,1.13615]
[1617782473461,7.02665,2068.5,2067.1,2.0]
[1617782473661,68.4771,2068.4,2067.8,2.90695]
[1617782473862,69.5771,2068.4,2067.8,2.90695]
[1617782474061,69.5771,2068.4,2066.5,12.6673]
[1617782474062,69.5771,2068.4,2066.5,42.6673]
[1617782475262,69.5771,2068.4,2066.3,0.06351597]
[1617782475663,77.6712,2068.2,2067.1,2.90695]
[1617782475863,1.1,2068.2,2067.1,2.90695]
[1617782477668,2.90695,2067.2,2067.1,2.90695]
[1617782477863,7.08475,2067.2,2067.1,2.90695]
[1617782478665,7.07405,2067.2,2067.1,2.90695]
[1617782478866,8.05385,2067.2,2066.3,0.06351597]
[1617782479667,2.90695,2066.4,2066.3,0.06351597]
[1617782479866,6.72365,2066.4,2066.3,0.06351597]
[1617782480072,5.62365,2066.4,2066.3,0.06351597]
[1617782480268,2.7167,2066.4,2066.3,0.06351597]
[1617782481671,2.7167,2066.4,2066.3,2.97046597]
[1617782481871,2.7167,2066.4,2066.3,0.06351597]
[1617782482271,3.8167,2066.4,2066.3,0.06351597]
[1617782483872,3.7967,2066.4,2066.3,0.06351597]
[1617782484272,3.7967,2066.4,2064.1,30.0]
[1617782484472,75.2068,2064.9,2063.8,2.0]
[1617782484674,77.2919,2064.9,2063.9,30.0]
[1617782484875,77.2919,2064.9,2063.9,32.0]
[1617782485674,77.2919,2064.9,2064.8,2.90695]
[1617782486877,2.0851,2064.9,2064.8,2.90695]
[1617782487076,2.90695,2065.5,2064.8,2.90695]
[1617782487676,2.90695,2065.5,2065.4,2.90695]
[1617782488077,2.90695,2065.5,2064.5,30.0]
[1617782488277,62.4353,2064.7,2064.0,12.6713]
[1617782488476,65.2521,2064.7,2063.0,50.0]
[1617782488676,2.8168,2064.7,2063.0,50.0]
[1617782488880,2.7968,2064.7,2063.0,50.0]
[1617782489678,3.1476,2065.5,2063.0,50.0]
[1617782489679,3.88235,2064.9,2064.6,2.90695]
[1617782490078,3.88235,2064.9,2063.0,118.4322]
[1617782490079,0.9754,2064.9,2063.0,118.4322]
[1617782490278,0.9754,2064.9,2063.4,0.9764]
[1617782490481,57.0922,2063.9,2063.1,12.903]
[1617782490680,59.6624,2063.9,2063.1,12.903]
[1617782491279,2.5702,2063.9,2063.1,12.903]
[1617782491679,2.5702,2063.9,2063.8,2.90695]
[1617782493281,2.5702,2063.9,2063.0,50.0]
[1617782493682,2.90695,2063.7,2063.6,18.90695]
[1617782493883,2.90695,2063.7,2063.6,16.0]
[1617782496183,4.00695,2063.7,2063.6,16.0]
[1617782496383,4.00695,2063.7,2063.6,15.303]
[1617782496782,4.98355,2063.7,2063.6,15.303]
[1617782496983,4.00695,2063.7,2063.6,15.027]
[1617782497183,55.6468,2064.5,2063.6,14.8818]
[1617782497383,2.0476,2065.5,2063.6,17.2915]
[1617782497587,13.2359,2068.3,2063.6,17.2915]
[1617782497785,30.0,2066.8,2064.1,2.90695]
[1617782497983,68.2419,2064.2,2064.1,2.90695]
[1617782498384,1.1,2065.9,2064.1,2.90695]
[1617782498585,68.1824,2065.3,2064.1,5.48895]
[1617782498785,69.2824,2065.3,2064.1,5.48895]
[1617782499185,69.2824,2065.3,2064.1,35.48895]
[1617782499385,1.1,2065.3,2064.1,35.48895]
[1617782499585,0.4664,2065.3,2064.2,6.02]
[1617782499786,81.0681,2066.4,2065.2,2.90695]
[1617782499987,1.1,2067.0,2065.2,5.56115]
[1617782500586,1.1,2067.0,2065.3,2.0]
[1617782500788,1.1,2067.0,2065.3,32.0]
[1617782501687,0.969,2068.1,2065.3,32.0]
[1617782501688,2.069,2068.1,2065.3,32.0]
[1617782501887,2.069,2068.1,2065.9,2.90695]
[1617782502088,2.069,2068.1,2065.9,5.54345]
[1617782502887,1.1,2068.1,2065.9,5.54345]
[1617782503088,58.8698,2067.8,2066.0,2.0]
[1617782503289,59.9698,2067.8,2065.9,5.54345]
[1617782503689,59.9698,2067.8,2066.3,2.90695]
[1617782503889,2.90695,2066.7,2066.3,2.90695]
[1617782505896,2.90695,2066.7,2066.6,2.90695]
[1617782507198,59.7889,2066.8,2066.6,2.90695]
[1617782507796,2.90695,2066.7,2066.6,2.90695]
[1617782509603,5.15785,2066.7,2066.6,2.90695]
[1617782510105,7.22955,2066.7,2065.5,43.4349]
[1617782510504,59.9535,2065.8,2065.5,13.4349]
[1617782510706,61.9923,2065.8,2065.5,13.4349]
[1617782511708,63.0923,2065.8,2065.5,13.4349]
[1617782511907,2.90695,2065.6,2065.5,13.4349]
[1617782512108,4.00695,2065.6,2065.1,2.90695]
[1617782512308,4.00695,2065.6,2065.1,2.80835]
[1617782513713,4.00695,2065.6,2065.1,32.80835]
[1617782513912,1.1,2065.6,2065.5,2.90695]
[1617782514113,79.5881,2066.7,2065.5,31.8816]
[1617782514913,79.5881,2066.7,2065.6,2.0]
[1617782515114,79.5881,2066.7,2065.8,2.0]
[1617782515316,79.5881,2066.7,2065.9,32.0]
[1617782515817,79.5881,2066.7,2066.5,2.90695]
[1617782516214,79.5881,2066.7,2065.5,1.8816]
[1617782516417,79.5881,2066.7,2065.0,2.0]
[1617782517119,79.5881,2066.7,2065.1,5.93]
[1617782517318,79.5881,2066.7,2065.2,2.0]
[1617782517519,79.5881,2066.7,2065.2,32.0]
[1617782517921,79.5881,2066.7,2066.5,2.90695]
[1617782518120,79.5881,2066.7,2065.4,30.0]
[1617782519716,79.5881,2066.7,2065.4,32.0]
[1617782519915,79.5881,2066.7,2066.6,2.90695]
[1617782520115,4.00695,2066.8,2066.6,5.79945]
[1617782520319,1.1,2066.8,2066.6,5.79945]
[1617782520716,77.8084,2067.4,2066.7,30.0]
[1617782520916,2.0,2068.9,2066.7,30.0]
[1617782521115,74.3467,2068.3,2066.7,30.0]
[1617782521917,2.90695,2068.1,2067.8,2.90695]
[1617782522117,2.90695,2068.1,2067.8,5.16405]
[1617782522317,2.90695,2068.1,2067.8,2.2571]
[1617782523920,2.0,2069.6,2067.8,2.2571]
[1617782523921,76.5823,2068.9,2068.0,2.90695]
[1617782526022,76.5823,2068.9,2068.8,2.90695]
[1617782526226,76.5823,2068.9,2068.8,5.96285]
[1617782526423,0.9683,2070.1,2068.8,3.0559]
[1617782526823,0.9755,2070.6,2068.8,3.0559]
[1617782527024,109.4034,2071.1,2068.8,3.0559]
[1617782527225,0.9548,2071.2,2068.8,3.0559]
[1617782528025,74.939,2070.7,2069.1,2.90695]
[1617782530027,4.571,2071.8,2070.3,2.90695]
[1617782530227,2.571,2071.8,2070.3,5.64785]
[1617782531430,2.571,2071.8,2070.3,83.19105]
[1617782532029,2.571,2071.8,2071.0,2.90695]
[1617782532231,2.571,2071.8,2071.0,4.85265]
[1617782532630,3.5289,2071.8,2071.0,1.7615]
[1617782532830,3.5289,2071.8,2069.6,13.0913]
[1617782533031,6.1016,2071.8,2069.6,13.0913]
[1617782533230,59.6833,2070.5,2069.6,13.0913]
[1617782534030,59.6833,2070.5,2070.4,2.90695]
[1617782534230,74.2619,2071.1,2070.4,2.90695]
[1617782537438,74.2619,2071.1,2070.4,32.90695]
[1617782538033,68.2296,2071.1,2071.0,2.90695]
[1617782538234,58.6642,2071.1,2071.0,5.47665]
[1617782538634,38.7783,2071.1,2071.0,5.47665]
[1617782538834,36.9681,2071.1,2071.0,5.47665]
[1617782539034,34.2051,2071.1,2071.0,5.47665]
[1617782539434,31.1828,2071.1,2071.0,5.47665]
[1617782539637,24.6676,2071.1,2071.0,5.47665]
[1617782539836,72.127,2072.9,2071.0,35.47665]
[1617782540036,72.127,2072.9,2072.0,2.90695]
[1617782540236,2.571,2073.1,2072.0,5.72435]
[1617782541937,2.571,2073.1,2072.0,2.8174]
[1617782542140,2.571,2073.1,2072.9,2.90695]
[1617782544144,5.47795,2073.1,2072.9,2.90695]
[1617782544345,2.571,2073.1,2072.9,2.90695]
[1617782544545,3.5353,2074.6,2072.9,2.90695]
[1617782546044,2.571,2074.6,2073.8,2.90695]
[1617782546245,2.571,2074.6,2072.6,54.663]
[1617782547045,2.571,2074.6,2072.6,56.663]
[1617782547247,2.571,2074.6,2072.6,54.663]
[1617782547849,4.7805,2074.6,2072.5,2.5732]
[1617782548046,73.1289,2073.8,2072.9,2.90695]
[1617782548246,75.5857,2073.8,2071.6,65.6924]
[1617782548446,75.5857,2073.8,56.42,2.0]
[1617782548447,2.4568,2073.8,2071.5,2.0]
[1617782548646,2.4568,2073.8,2065.3,9.50900698]
[1617782548647,63.1327,2072.7,2070.4,75.8007]
[1617782548847,65.7908,2072.7,2070.4,75.8007]
[1617782549048,65.7908,2072.7,2070.5,30.0]
[1617782549448,65.7908,2072.7,2070.6,5.96]
[1617782549647,2.6581,2072.7,2070.6,5.96]
[1617782549851,2.6581,2072.7,2070.5,2.0]
[1617782550050,63.047,2071.5,2070.7,2.90695]
[1617782550250,65.3206,2071.5,2070.7,2.90695]
[1617782551050,65.3206,2071.5,2069.5,30.0]
[1617782551852,65.3206,2071.5,2069.6,2.0]
[1617782552050,2.90695,2071.1,2070.6,2.90695]
[1617782553352,65.3206,2071.5,2070.6,2.90695]
[1617782553753,63.047,2071.5,2070.6,2.90695]
[1617782554154,63.047,2071.5,2071.4,2.90695]
[1617782554354,2.90695,2071.6,2070.3,1.9451]
[1617782554553,56.7984,2071.3,2070.3,1.9451]
[1617782555154,56.7984,2071.3,2070.4,5.94]
[1617782555354,56.7984,2071.3,2070.5,30.0]
[1617782555755,56.7984,2071.3,2070.6,2.0]
[1617782555955,56.7984,2071.3,2070.7,32.0]
[1617782556155,59.70535,2071.3,2071.2,2.90695]
[1617782557157,56.7984,2071.3,2071.2,2.90695]
[1617782557858,56.7984,2071.3,2070.3,30.0]
[1617782558057,59.8016,2071.3,2070.5,2.90695]
[1617782559462,3.0032,2071.3,2069.4,30.0]
[1617782559659,80.8488,2069.8,2067.3,77.93]
[1617782559860,1.9885,2069.8,2067.4,2.0]
[1617782560062,80.884,2068.5,2068.2,2.90695]
[1617782560263,83.3421,2068.5,2068.2,2.90695]
[1617782560861,83.3421,2068.5,2067.3,30.0]
[1617782561063,2.4581,2068.5,2067.3,30.0]
[1617782561262,65.4932,2067.8,2067.3,30.0]
[1617782561463,67.6502,2067.8,2067.3,30.0]
[1617782561864,67.6502,2067.8,2066.1,30.0]
[1617782562063,67.6502,2067.8,2067.3,30.0]
[1617782562262,67.6502,2067.8,2067.7,2.90695]
[1617782562762,67.6502,2067.8,2067.7,4.90695]
[1617782562963,67.6502,2067.8,2067.7,2.90695]
[1617782563563,67.6502,2067.8,2067.7,32.90695]
[1617782563762,72.4985,2069.8,2067.7,32.90695]
[1617782563964,72.4985,2069.8,2067.8,2.0]
[1617782564163,75.40545,2069.8,2069.7,2.90695]
[1617782564564,4.89545,2069.8,2069.7,2.90695]
[1617782564764,2.90695,2069.8,2069.7,2.90695]
[1617782564963,2.571,2070.2,2069.7,2.90695]
[1617782565564,73.321,2070.4,2069.7,2.90695]
[1617782565763,73.321,2070.4,2068.9,32.0]
[1617782565964,76.1497,2070.4,2068.9,32.0]
[1617782566164,2.90695,2069.1,2069.0,2.90695]
[1617782566766,69.964,2069.3,2069.0,2.90695]
[1617782566970,69.964,2069.3,2069.0,32.90695]
[1617782567172,69.964,2069.3,2069.1,2.0]
[1617782567366,67.3715,2069.3,2069.1,32.0]
[1617782567968,13.0281,2070.8,2069.1,32.0]
[1617782568171,5.098,2071.8,2070.1,2.90695]
[1617782568369,74.2466,2070.3,2070.1,2.90695]
[1617782568769,74.2466,2070.3,2069.1,32.0]
[1617782569770,74.2466,2070.3,2069.3,2.0]
[1617782569970,74.2466,2070.3,2069.5,2.0]
[1617782570171,2.90695,2070.8,2070.2,2.90695]
[1617782570371,2.90695,2070.8,2070.3,2.0]
[1617782570770,2.90695,2070.8,2070.2,35.27645]
[1617782571372,2.90695,2070.8,2070.2,5.27645]
[1617782571571,2.90695,2070.8,2070.2,2.90695]
[1617782572173,2.90695,2070.3,2069.7,2.90695]
[1617782572379,70.5026,2070.2,2069.7,2.90695]
[1617782574176,2.90695,2069.8,2069.7,2.90695]
[1617782574778,70.5026,2070.2,2069.7,2.90695]
[1617782574976,2.571,2071.3,2069.7,32.90695]
[1617782575175,67.7521,2070.7,2069.7,32.90695]
[1617782575577,67.7521,2070.7,2069.8,2.0]
[1617782575776,67.7521,2070.7,2070.0,2.0]
[1617782575975,67.7521,2070.7,2070.0,34.7728]
[1617782576175,2.90695,2070.8,2070.6,2.90695]
[1617782576376,2.90695,2070.8,2070.6,5.94955]
[1617782577580,2.571,2071.3,2070.7,30.0]
[1617782577777,60.4191,2071.7,2070.8,2.0]
[1617782577978,60.4191,2071.7,2070.8,32.0]
[1617782578178,2.90695,2071.3,2071.2,2.90695]
[1617782578377,2.90695,2071.3,2071.2,5.62175]
[1617782579578,60.4191,2071.7,2071.2,5.62175]
[1617782580180,15.9469,2072.6,2070.2,30.0]
[1617782580181,2.90695,2071.3,2070.2,30.0]
[1617782580379,75.7342,2070.6,2068.4,58.6757]
[1617782580580,78.5241,2070.6,2068.4,58.6757]
[1617782580980,78.5241,2070.6,2068.5,2.0]
[1617782581180,78.5241,2070.6,2068.7,2.0]
[1617782581381,78.5241,2070.6,2068.8,30.0]
[1617782581581,78.5241,2070.6,2068.9,2.0]
[1617782581781,78.5241,2070.6,2069.1,2.0]
[1617782581982,78.5241,2070.6,2069.2,30.0]
[1617782582182,78.5241,2070.6,2069.8,2.90695]
[1617782582183,2.90695,2069.9,2069.8,2.90695]
[1617782582384,5.73325,2069.9,2069.8,2.90695]
[1617782582783,5.73325,2069.9,2069.2,30.0]
[1617782583184,5.73325,2069.9,2068.7,30.0]
[1617782583585,55.0011,2069.4,2068.7,30.0]
[1617782583785,57.7499,2069.4,2068.7,30.0]
[1617782584187,60.65685,2069.4,2069.3,2.90695]
[1617782584387,60.65685,2069.4,2069.3,32.90695]
[1617782584588,57.7499,2069.4,2069.3,32.90695]
[1617782584989,2.7488,2069.4,2069.3,34.90695]
[1617782585189,2.8263,2069.9,2069.3,34.90695]
[1617782586191,2.8263,2069.9,2069.7,2.90695]
[1617782587692,71.0732,2070.1,2069.7,2.90695]
[1617782588293,2.90695,2069.8,2069.7,2.90695]
[1617782589094,2.90695,2069.8,2067.6,1.8678]
[1617782589095,2.90695,2069.8,2068.7,30.0]
[1617782589296,77.7034,2069.7,2068.7,30.0]
[1617782589499,77.7034,2069.7,2068.1,2.0]
[1617782589697,2.90695,2069.8,2067.4,13.0153]
[1617782589897,69.643,2068.7,2067.4,13.0153]
[1617782590096,71.5293,2068.7,2067.5,30.0]
[1617782590296,71.5293,2068.7,2066.4,54.66]
[1617782590497,71.5293,2068.7,2066.5,2.0]
[1617782591098,71.5293,2068.7,2068.0,2.90695]
[1617782593102,71.5293,2068.7,2068.6,2.90695]
[1617782593501,71.5293,2068.7,2067.6,30.0]
[1617782593703,71.5293,2068.7,51.599,2.0]
[1617782593704,1.8863,2068.7,2067.2,30.0]
[1617782593901,69.532,2067.8,2067.2,30.0]
[1617782594102,71.9853,2067.8,2067.2,30.0]
[1617782594701,71.9853,2067.8,2066.2,2.0]
[1617782594901,71.9853,2067.8,2066.3,30.0]
[1617782595101,71.9853,2067.8,2067.7,2.90695]
[1617782595702,71.9853,2067.8,2066.3,30.0]
[1617782596703,71.9853,2067.8,2066.4,2.0]
[1617782596903,71.9853,2067.8,2066.4,32.0]
[1617782597104,71.9853,2067.8,2067.4,2.90695]
[1617782598304,71.9853,2067.8,2067.4,1.76445]
[1617782598504,71.9853,2067.8,2066.4,30.0]
[1617782599006,71.9853,2067.8,2067.1,2.90695]
[1617782599604,2.4533,2067.8,2066.4,30.0]
[1617782599804,3.8863,2068.7,2065.9,30.0]
[1617782599805,59.6412,2067.1,2065.9,30.0]
[1617782600004,61.9337,2067.1,2065.9,30.0]
[1617782600605,61.9337,2067.1,2064.9,71.7663]
[1617782600606,61.9337,2067.1,2065.0,2.0]
[1617782600806,2.2925,2067.1,2065.0,32.0]
[1617782601007,74.9945,2066.0,2065.0,30.0]
[1617782601206,78.0134,2066.0,2065.0,30.0]
[1617782602810,78.0134,2066.0,2064.5,2.0]
[1617782603010,78.0134,2066.0,2064.6,30.0]
[1617782603211,78.0134,2066.0,2065.6,2.90695]
[1617782605010,74.9945,2066.0,2065.6,32.90695]
[1617782605209,74.9945,2066.0,2065.9,2.90695]
[1617782605410,2.90695,2066.2,2065.9,32.90695]
[1617782605814,13.6459,2069.1,2065.9,32.90695]
[1617782606011,87.709,2068.1,2066.0,80.5562]
[1617782606214,87.709,2068.1,2066.1,30.0]
[1617782606411,87.709,2068.1,2066.2,2.0]
[1617782606616,87.709,2068.1,2066.4,2.0]
[1617782606813,87.709,2068.1,2066.5,30.0]
[1617782607216,74.5648,2068.1,2067.5,2.90695]
[1617782608417,74.5648,2068.1,2066.8,2.7502]
[1617782608617,0.9658,2068.1,2066.8,2.7502]
[1617782608817,65.848,2067.0,2066.8,2.7502]
[1617782609016,2.7032,2067.0,2063.3,13.9849]
[1617782609220,2.7032,2067.0,2066.0,2.90695]
[1617782609618,2.7032,2067.0,2065.3,30.0]
[1617782609820,74.5585,2065.4,2063.6,57.8806]
[1617782610019,77.6434,2065.4,2063.6,57.8806]
[1617782610220,77.6434,2065.4,2063.7,2.0]
[1617782610620,77.6434,2065.4,2063.9,2.0]
[1617782610819,77.6434,2065.4,2064.0,30.0]
[1617782611218,5.99185,2065.4,2064.1,5.95]
[1617782611420,72.9741,2064.2,2063.4,2.0]
[1617782611620,75.3699,2064.2,2063.4,2.0]
[1617782612020,75.3699,2064.2,2062.5,14.8818]
[1617782612220,2.3958,2064.2,2062.5,14.8818]
[1617782612621,3.3615,2064.2,2062.5,14.8818]
[1617782613220,2.90695,2063.1,2062.7,2.90695]
[1617782613421,5.04375,2063.1,2062.7,2.90695]
[1617782614425,6.00995,2063.1,2062.7,2.90695]
[1617782614623,5.04375,2063.1,2062.7,2.90695]
[1617782615231,5.04375,2063.1,2063.0,52.90695]
[1617782615625,6.00015,2063.1,2063.0,52.90695]
[1617782615839,6.00015,2063.1,2063.0,50.0]
[1617782616726,6.00015,2063.1,2063.0,46.9112]
[1617782616929,5.04375,2063.1,2063.0,39.9081]
[1617782617127,5.04375,2063.1,2063.0,39.4201]
[1617782617327,5.04375,2063.1,2063.0,36.9948]
[1617782617531,5.04375,2063.1,2063.0,36.033]
[1617782618129,6.02645,2063.1,2063.0,35.1978]
[1617782618329,5.04375,2063.1,2063.0,35.1978]
[1617782618529,2.1368,2063.1,2063.0,35.1978]
[1617782618730,0.9641,2063.6,2063.0,35.1978]
[1617782619129,77.9803,2064.5,2063.5,2.90695]
[1617782619130,2.90695,2063.7,2063.5,2.90695]
[1617782619332,2.90695,2063.7,2063.5,5.26535]
[1617782619929,2.90695,2063.7,2063.5,2.3584]
[1617782620129,2.90695,2063.7,2063.0,35.1978]
[1617782620330,3.87905,2063.7,2063.0,35.1978]
[1617782620532,3.87905,2063.7,2063.0,33.9199]
[1617782620731,6.35535,2063.7,2063.0,33.9199]